[Event "Titled Tuesday Blitz April 4 Early 2023"]
[White "Tuleyeva-Aketayeva, Dana"]
[Black "TimGrutter03"]
[WhiteFideId "13701932"]
[WhiteElo "2030"]
[BlackElo "2543"]
[Result "0-1"]
[Round "01"]
[TimeControl "180+2"]
[Date "2023.04.04"]
[WhiteClock "0:00:22"]
[BlackClock "0:01:17"]

1. d4 {[%clk 0:02:56]}  Nf6 {[%clk 0:02:51]} 2. Nf3 {[%clk 0:02:55]}  c5 {[%clk 0:02:48]} 3. c3 {[%clk 0:02:54]}  cxd4 {[%clk 0:02:47]} 4. cxd4 {[%clk 0:02:55]}  g6 {[%clk 0:02:37]} 5. g3 {[%clk 0:02:54]}  Bg7 {[%clk 0:02:36]} 6. Bg2 {[%clk 0:02:54]}  O-O {[%clk 0:02:36]} 7. O-O {[%clk 0:02:54]}  d6 {[%clk 0:02:34]} 8. Nc3 {[%clk 0:02:54]}  Nc6 {[%clk 0:02:31]} 9. h3 {[%clk 0:02:45]}  Bd7 {[%clk 0:02:23]} 10. e4 {[%clk 0:02:37]}  Ne8 {[%clk 0:02:16]} 11. Be3 {[%clk 0:02:31]}  Rc8 {[%clk 0:02:14]} 12. d5 {[%clk 0:02:23]}  Na5 {[%clk 0:02:14]} 13. Bd4 {[%clk 0:02:15]}  Nc4 {[%clk 0:02:11]} 14. b3 {[%clk 0:01:59]}  Ne5 {[%clk 0:02:07]} 15. Bxe5 {[%clk 0:01:54]}  dxe5 {[%clk 0:02:05]} 16. Rc1 {[%clk 0:01:54]}  Nd6 {[%clk 0:02:04]} 17. Qd2 {[%clk 0:01:39]}  Qa5 {[%clk 0:02:02]} 18. Nb1 {[%clk 0:00:59]}  Qxd2 {[%clk 0:01:41]} 19. Nfxd2 {[%clk 0:00:46]}  Bb5 {[%clk 0:01:28]} 20. Rfe1 {[%clk 0:00:42]}  Bh6 {[%clk 0:01:24]} 21. Na3 {[%clk 0:00:25]}  Bxd2 {[%clk 0:01:19]} 22. Nxb5 {[%clk 0:00:22]}  Rxc1 {[%clk 0:01:16]} 23. Rxc1 {[%clk 0:00:22]}  Bxc1 {[%clk 0:01:17]} 0-1


[Site "https://www.chess.com"]

[Event "Titled Tuesday Blitz April 4 Early 2023"]
[White "Filgueira, Hernan"]
[Black "dDobravcan"]
[WhiteFideId "101770"]
[WhiteElo "2363"]
[BlackElo "2151"]
[Result "1-0"]
[Round "01"]
[TimeControl "180+2"]
[Date "2023.04.04"]
[WhiteClock "0:01:30"]
[BlackClock "0:00:59"]

1. c4 {[%clk 0:02:59]}  e5 {[%clk 0:02:58]} 2. Nc3 {[%clk 0:02:54]}  d6 {[%clk 0:02:57]} 3. Nf3 {[%clk 0:02:53]}  f5 {[%clk 0:02:58]} 4. d4 {[%clk 0:02:52]}  e4 {[%clk 0:02:57]} 5. Ng5 {[%clk 0:02:52]}  Be7 {[%clk 0:02:57]} 6. Nh3 {[%clk 0:02:52]}  c6 {[%clk 0:02:55]} 7. g3 {[%clk 0:02:49]}  Na6 {[%clk 0:02:53]} 8. Bg2 {[%clk 0:02:48]}  Nf6 {[%clk 0:02:53]} 9. O-O {[%clk 0:02:47]}  O-O {[%clk 0:02:53]} 10. d5 {[%clk 0:02:43]}  Nc7 {[%clk 0:02:42]} 11. f3 {[%clk 0:02:42]}  cxd5 {[%clk 0:02:33]} 12. cxd5 {[%clk 0:02:41]}  exf3 {[%clk 0:02:30]} 13. Bxf3 {[%clk 0:02:35]}  Ng4 {[%clk 0:02:22]} 14. Kh1 {[%clk 0:02:27]}  Ne5 {[%clk 0:02:15]} 15. Bg2 {[%clk 0:02:25]}  Bf6 {[%clk 0:02:15]} 16. Nf4 {[%clk 0:02:24]}  Kh8 {[%clk 0:02:03]} 17. Nh5 {[%clk 0:02:12]}  Bg5 {[%clk 0:01:58]} 18. e4 {[%clk 0:02:08]}  Bxc1 {[%clk 0:01:44]} 19. Qxc1 {[%clk 0:02:06]}  fxe4 {[%clk 0:01:36]} 20. Rxf8+ {[%clk 0:01:59]}  Qxf8 {[%clk 0:01:35]} 21. Bxe4 {[%clk 0:01:56]}  Bg4 {[%clk 0:01:34]} 22. Nf4 {[%clk 0:01:54]}  Re8 {[%clk 0:01:20]} 23. h4 {[%clk 0:01:49]}  Qf6 {[%clk 0:01:18]} 24. Qe3 {[%clk 0:01:44]}  g5 {[%clk 0:01:14]} 25. hxg5 {[%clk 0:01:42]}  Qxg5 {[%clk 0:01:14]} 26. Ng6+ {[%clk 0:01:39]}  Qxg6 {[%clk 0:01:10]} 27. Bxg6 {[%clk 0:01:38]}  Bf3+ {[%clk 0:01:07]} 28. Kg1 {[%clk 0:01:35]}  Rf8 {[%clk 0:01:07]} 29. Bc2 {[%clk 0:01:32]}  Bg4 {[%clk 0:01:03]} 30. Qh6 {[%clk 0:01:31]}  Rf7 {[%clk 0:00:59]} 31. Bxh7 {[%clk 0:01:30]} 1-0


[Site "https://www.chess.com"]

[Event "Titled Tuesday Blitz April 4 Early 2023"]
[White "Kornyukov, Alexey"]
[Black "Escanor89"]
[WhiteFideId "4150457"]
[WhiteElo "2352"]
[BlackElo "2539"]
[Result "0-1"]
[Round "01"]
[TimeControl "180+2"]
[Date "2023.04.04"]
[WhiteClock "0:02:09"]
[BlackClock "0:01:52"]

1. e4 {[%clk 0:02:58]}  c5 {[%clk 0:03:00]} 2. Nf3 {[%clk 0:02:57]}  e6 {[%clk 0:03:00]} 3. c3 {[%clk 0:02:55]}  d5 {[%clk 0:02:58]} 4. exd5 {[%clk 0:02:52]}  Qxd5 {[%clk 0:02:59]} 5. d4 {[%clk 0:02:52]}  Nf6 {[%clk 0:02:59]} 6. Be2 {[%clk 0:02:45]}  Nc6 {[%clk 0:02:59]} 7. O-O {[%clk 0:02:42]}  cxd4 {[%clk 0:02:58]} 8. cxd4 {[%clk 0:02:41]}  Be7 {[%clk 0:02:58]} 9. Nc3 {[%clk 0:02:40]}  Qd8 {[%clk 0:02:57]} 10. Be3 {[%clk 0:02:39]}  O-O {[%clk 0:02:57]} 11. Bd3 {[%clk 0:02:38]}  b6 {[%clk 0:02:56]} 12. Ne5 {[%clk 0:02:37]}  Bb7 {[%clk 0:02:55]} 13. Rc1 {[%clk 0:02:34]}  Nb4 {[%clk 0:02:53]} 14. a3 {[%clk 0:02:31]}  Nxd3 {[%clk 0:02:52]} 15. Nxd3 {[%clk 0:02:31]}  Rc8 {[%clk 0:02:48]} 16. Ne5 {[%clk 0:02:29]}  Nd5 {[%clk 0:02:33]} 17. Nxd5 {[%clk 0:02:26]}  Qxd5 {[%clk 0:02:32]} 18. f3 {[%clk 0:02:26]}  Rxc1 {[%clk 0:02:22]} 19. Qxc1 {[%clk 0:02:20]}  Rc8 {[%clk 0:02:22]} 20. Qd2 {[%clk 0:02:19]}  Qb5 {[%clk 0:02:14]} 21. Rc1 {[%clk 0:02:17]}  Qe8 {[%clk 0:01:59]} 22. Rxc8 {[%clk 0:02:14]}  Qxc8 {[%clk 0:01:58]} 23. Qc3 {[%clk 0:02:13]}  Qxc3 {[%clk 0:01:58]} 24. bxc3 {[%clk 0:02:11]}  Bxa3 {[%clk 0:01:58]} 25. c4 {[%clk 0:02:10]}  f6 {[%clk 0:01:54]} 26. Nd3 {[%clk 0:02:09]}  Ba6 {[%clk 0:01:52]} 0-1


[Site "https://www.chess.com"]

[Event "Titled Tuesday Blitz April 4 Early 2023"]
[White "Rodchenkov, Sergey D."]
[Black "Vargas Rodriguez, Wilver"]
[WhiteFideId "4168712"]
[BlackFideId "3509672"]
[WhiteElo "2277"]
[BlackElo "2224"]
[Result "1-0"]
[Round "01"]
[TimeControl "180+2"]
[Date "2023.04.04"]
[WhiteClock "0:01:02"]
[BlackClock "0:00:01"]

1. e4 {[%clk 0:02:59]}  c5 {[%clk 0:02:38]} 2. Nf3 {[%clk 0:02:58]}  d6 {[%clk 0:02:20]} 3. d4 {[%clk 0:02:59]}  cxd4 {[%clk 0:02:17]} 4. Nxd4 {[%clk 0:02:59]}  Nf6 {[%clk 0:02:11]} 5. Nc3 {[%clk 0:03:00]}  a6 {[%clk 0:02:04]} 6. Bg5 {[%clk 0:03:00]}  e6 {[%clk 0:01:54]} 7. f4 {[%clk 0:03:00]}  Be7 {[%clk 0:01:47]} 8. Qf3 {[%clk 0:03:00]}  Qc7 {[%clk 0:01:34]} 9. O-O-O {[%clk 0:02:58]}  Nbd7 {[%clk 0:01:26]} 10. g4 {[%clk 0:02:54]}  b5 {[%clk 0:01:13]} 11. Bxf6 {[%clk 0:02:54]}  Nxf6 {[%clk 0:01:02]} 12. g5 {[%clk 0:02:54]}  Nd7 {[%clk 0:00:54]} 13. f5 {[%clk 0:02:53]}  Ne5 {[%clk 0:00:42]} 14. Qg3 {[%clk 0:02:37]}  b4 {[%clk 0:00:30]} 15. Nce2 {[%clk 0:02:36]}  Bd7 {[%clk 0:00:25]} 16. Nf4 {[%clk 0:02:35]}  Rc8 {[%clk 0:00:20]} 17. Qg2 {[%clk 0:02:26]}  Bxg5 {[%clk 0:00:19]} 18. Qxg5 {[%clk 0:02:09]}  Nf3 {[%clk 0:00:17]} 19. Qg2 {[%clk 0:01:59]}  Nxd4 {[%clk 0:00:16]} 20. Rxd4 {[%clk 0:02:00]}  Qc5 {[%clk 0:00:14]} 21. Rd2 {[%clk 0:01:58]}  Qe5 {[%clk 0:00:13]} 22. Nd3 {[%clk 0:01:53]}  Qa5 {[%clk 0:00:12]} 23. Kb1 {[%clk 0:01:41]}  O-O {[%clk 0:00:10]} 24. Rg1 {[%clk 0:01:39]}  g6 {[%clk 0:00:09]} 25. h4 {[%clk 0:01:37]}  exf5 {[%clk 0:00:09]} 26. h5 {[%clk 0:01:22]}  fxe4 {[%clk 0:00:09]} 27. Nf4 {[%clk 0:01:22]}  Qf5 {[%clk 0:00:08]} 28. Rf2 {[%clk 0:01:08]}  e3 {[%clk 0:00:06]} 29. Nxg6 {[%clk 0:01:01]}  Qxf2 {[%clk 0:00:02]} 30. Ne7+ {[%clk 0:01:01]}  Kh8 {[%clk 0:00:01]} 31. Qg7# {[%clk 0:01:02]} 1-0


[Site "https://www.chess.com"]

[Event "Titled Tuesday Blitz April 4 Early 2023"]
[White "Levine, David"]
[Black "koncheto"]
[WhiteFideId "2011611"]
[WhiteElo "2087"]
[BlackElo "2530"]
[Result "1/2-1/2"]
[Round "01"]
[TimeControl "180+2"]
[Date "2023.04.04"]
[WhiteClock "0:00:01"]
[BlackClock "0:00:14"]

1. d4 {[%clk 0:02:59]}  Nf6 {[%clk 0:02:59]} 2. c4 {[%clk 0:02:58]}  e6 {[%clk 0:02:59]} 3. g3 {[%clk 0:02:58]}  c5 {[%clk 0:02:52]} 4. d5 {[%clk 0:02:58]}  exd5 {[%clk 0:02:51]} 5. cxd5 {[%clk 0:02:58]}  d6 {[%clk 0:02:52]} 6. Nc3 {[%clk 0:02:57]}  g6 {[%clk 0:02:51]} 7. Bg2 {[%clk 0:02:57]}  Bg7 {[%clk 0:02:52]} 8. Nf3 {[%clk 0:02:57]}  O-O {[%clk 0:02:52]} 9. O-O {[%clk 0:02:57]}  a6 {[%clk 0:02:49]} 10. a4 {[%clk 0:02:56]}  Re8 {[%clk 0:02:46]} 11. Bf4 {[%clk 0:02:55]}  Qc7 {[%clk 0:02:42]} 12. Re1 {[%clk 0:02:41]}  Nbd7 {[%clk 0:02:38]} 13. e4 {[%clk 0:02:40]}  Ng4 {[%clk 0:02:33]} 14. Qc2 {[%clk 0:02:29]}  Rb8 {[%clk 0:02:20]} 15. a5 {[%clk 0:02:22]}  Nge5 {[%clk 0:02:20]} 16. Nxe5 {[%clk 0:02:21]}  Nxe5 {[%clk 0:02:17]} 17. h3 {[%clk 0:02:07]}  f5 {[%clk 0:02:15]} 18. exf5 {[%clk 0:01:41]}  Bxf5 {[%clk 0:02:08]} 19. Qb3 {[%clk 0:01:35]}  c4 {[%clk 0:01:53]} 20. Qa4 {[%clk 0:01:27]}  Nd3 {[%clk 0:01:52]} 21. Rxe8+ {[%clk 0:01:23]}  Kf7 {[%clk 0:01:43]} 22. Rxb8 {[%clk 0:01:20]}  Bd7 {[%clk 0:01:32]} 23. Rxb7 {[%clk 0:01:11]}  Qxb7 {[%clk 0:01:31]} 24. Qxc4 {[%clk 0:01:11]}  Qxb2 {[%clk 0:01:23]} 25. Rb1 {[%clk 0:00:49]}  Qxc3 {[%clk 0:01:12]} 26. Qxc3 {[%clk 0:00:48]}  Bxc3 {[%clk 0:01:11]} 27. Rb3 {[%clk 0:00:39]}  Nxf4 {[%clk 0:01:11]} 28. gxf4 {[%clk 0:00:33]}  Bxa5 {[%clk 0:01:11]} 29. Bf1 {[%clk 0:00:27]}  Bd2 {[%clk 0:01:04]} 30. Bxa6 {[%clk 0:00:25]}  Bxf4 {[%clk 0:01:02]} 31. Rb7 {[%clk 0:00:23]}  Ke8 {[%clk 0:00:58]} 32. Bb5 {[%clk 0:00:20]}  Bxb5 {[%clk 0:00:51]} 33. Rxb5 {[%clk 0:00:20]}  Bg5 {[%clk 0:00:35]} 34. Rb7 {[%clk 0:00:19]}  Be7 {[%clk 0:00:35]} 35. Kg2 {[%clk 0:00:19]}  Kf7 {[%clk 0:00:35]} 36. Kf3 {[%clk 0:00:17]}  h5 {[%clk 0:00:35]} 37. Ke4 {[%clk 0:00:16]}  Kf6 {[%clk 0:00:35]} 38. f4 {[%clk 0:00:15]}  Bd8 {[%clk 0:00:31]} 39. Rd7 {[%clk 0:00:15]}  Be7 {[%clk 0:00:31]} 40. h4 {[%clk 0:00:15]}  Bf8 {[%clk 0:00:31]} 41. Rd8 {[%clk 0:00:11]}  Be7 {[%clk 0:00:31]} 42. Rd7 {[%clk 0:00:05]}  Bf8 {[%clk 0:00:26]} 43. Rd8 {[%clk 0:00:05]}  Be7 {[%clk 0:00:27]} 44. Ra8 {[%clk 0:00:05]}  Kf7 {[%clk 0:00:23]} 45. Ra7 {[%clk 0:00:04]}  Ke8 {[%clk 0:00:23]} 46. f5 {[%clk 0:00:04]}  gxf5+ {[%clk 0:00:23]} 47. Kxf5 {[%clk 0:00:03]}  Bxh4 {[%clk 0:00:24]} 48. Ke6 {[%clk 0:00:02]}  Kd8 {[%clk 0:00:17]} 49. Ra8+ {[%clk 0:00:02]}  Kc7 {[%clk 0:00:16]} 50. Ra7+ {[%clk 0:00:02]}  Kb6 {[%clk 0:00:16]} 51. Rh7 {[%clk 0:00:02]}  Bg3 {[%clk 0:00:13]} 52. Rxh5 {[%clk 0:00:02]}  Kc5 {[%clk 0:00:14]} 53. Rh8 {[%clk 0:00:02]}  Be5 {[%clk 0:00:13]} 54. Rc8+ {[%clk 0:00:02]}  Kd4 {[%clk 0:00:14]} 55. Rc6 {[%clk 0:00:01]}  Ke4 {[%clk 0:00:13]} 56. Rxd6 {[%clk 0:00:01]}  Kd4 {[%clk 0:00:14]} 57. Rc6 {[%clk 0:00:01]}  Bh2 {[%clk 0:00:14]} 58. Rc2 {[%clk 0:00:01]}  Bf4 {[%clk 0:00:13]} 59. d6 {[%clk 0:00:01]}  Kd3 {[%clk 0:00:14]} 1/2-1/2


[Site "https://www.chess.com"]

[Event "Titled Tuesday Blitz April 4 Early 2023"]
[White "Eynullayev, Atilla"]
[Black "Hartikainen, Jarmo"]
[WhiteFideId "13413570"]
[BlackFideId "503134"]
[WhiteElo "2181"]
[BlackElo "2081"]
[Result "1-0"]
[Round "01"]
[TimeControl "180+2"]
[Date "2023.04.04"]
[WhiteClock "0:01:21"]
[BlackClock "0:01:15"]

1. d4 {[%clk 0:02:59]}  Nf6 {[%clk 0:02:58]} 2. c4 {[%clk 0:02:58]}  e6 {[%clk 0:02:58]} 3. Nc3 {[%clk 0:02:58]}  d5 {[%clk 0:02:58]} 4. cxd5 {[%clk 0:02:53]}  exd5 {[%clk 0:02:57]} 5. Bg5 {[%clk 0:02:54]}  Be7 {[%clk 0:02:56]} 6. e3 {[%clk 0:02:54]}  O-O {[%clk 0:02:50]} 7. Bd3 {[%clk 0:02:54]}  b6 {[%clk 0:02:42]} 8. Bxf6 {[%clk 0:02:42]}  Bxf6 {[%clk 0:02:41]} 9. Qh5 {[%clk 0:02:42]}  g6 {[%clk 0:02:34]} 10. Qxd5 {[%clk 0:02:43]}  Qxd5 {[%clk 0:02:29]} 11. Nxd5 {[%clk 0:02:43]}  Bd8 {[%clk 0:02:29]} 12. Be4 {[%clk 0:02:33]}  c6 {[%clk 0:02:26]} 13. Nc3 {[%clk 0:02:30]}  Bb7 {[%clk 0:02:23]} 14. Rc1 {[%clk 0:02:18]}  Re8 {[%clk 0:02:14]} 15. Bf3 {[%clk 0:01:56]}  Na6 {[%clk 0:02:10]} 16. Nge2 {[%clk 0:01:42]}  Nb4 {[%clk 0:02:09]} 17. O-O {[%clk 0:01:29]}  Bf6 {[%clk 0:02:03]} 18. a3 {[%clk 0:01:29]}  Nd3 {[%clk 0:01:35]} 19. Rc2 {[%clk 0:01:26]}  Rad8 {[%clk 0:01:26]} 20. Rd1 {[%clk 0:01:25]}  Ba6 {[%clk 0:01:18]} 21. Bxc6 {[%clk 0:01:24]}  Re7 {[%clk 0:01:15]} 22. Nd5 {[%clk 0:01:21]} 1-0


[Site "https://www.chess.com"]

[Event "Titled Tuesday Blitz April 4 Early 2023"]
[White "Mortazavi, Ali"]
[Black "Necula, Iulian"]
[WhiteFideId "401323"]
[BlackFideId "1232380"]
[WhiteElo "2339"]
[BlackElo "1790"]
[Result "1-0"]
[Round "01"]
[TimeControl "180+2"]
[Date "2023.04.04"]
[WhiteClock "0:00:36"]
[BlackClock "0:00:04"]

1. e4 {[%clk 0:02:58]}  d6 {[%clk 0:03:00]} 2. d4 {[%clk 0:02:58]}  Nf6 {[%clk 0:03:01]} 3. Nc3 {[%clk 0:02:58]}  e5 {[%clk 0:03:02]} 4. Nf3 {[%clk 0:02:58]}  Nbd7 {[%clk 0:03:01]} 5. Bc4 {[%clk 0:02:59]}  Be7 {[%clk 0:03:01]} 6. a4 {[%clk 0:02:57]}  c6 {[%clk 0:03:00]} 7. Ba2 {[%clk 0:02:57]}  h6 {[%clk 0:02:58]} 8. a5 {[%clk 0:02:55]}  a6 {[%clk 0:02:57]} 9. O-O {[%clk 0:02:54]}  Qc7 {[%clk 0:02:57]} 10. Nh4 {[%clk 0:02:29]}  Nf8 {[%clk 0:02:50]} 11. dxe5 {[%clk 0:02:26]}  dxe5 {[%clk 0:02:50]} 12. Nf5 {[%clk 0:02:23]}  Bxf5 {[%clk 0:02:48]} 13. exf5 {[%clk 0:02:23]}  Rd8 {[%clk 0:02:42]} 14. Qf3 {[%clk 0:02:21]}  N8h7 {[%clk 0:02:26]} 15. Be3 {[%clk 0:02:19]}  c5 {[%clk 0:02:13]} 16. Qg3 {[%clk 0:02:09]}  Nh5 {[%clk 0:01:56]} 17. Qf3 {[%clk 0:02:05]}  N7f6 {[%clk 0:01:51]} 18. Bc4 {[%clk 0:01:54]}  O-O {[%clk 0:01:48]} 19. g3 {[%clk 0:01:51]}  Rd4 {[%clk 0:01:37]} 20. b3 {[%clk 0:01:50]}  e4 {[%clk 0:01:33]} 21. Qg2 {[%clk 0:01:47]}  Ng4 {[%clk 0:01:31]} 22. Bxd4 {[%clk 0:01:44]}  cxd4 {[%clk 0:01:31]} 23. Nxe4 {[%clk 0:01:41]}  Ne5 {[%clk 0:01:00]} 24. Bd3 {[%clk 0:01:40]}  g6 {[%clk 0:00:42]} 25. fxg6 {[%clk 0:01:27]}  fxg6 {[%clk 0:00:42]} 26. Nd2 {[%clk 0:01:28]}  Kg7 {[%clk 0:00:38]} 27. Qe4 {[%clk 0:01:10]}  Nf6 {[%clk 0:00:25]} 28. Qxd4 {[%clk 0:01:01]}  Rd8 {[%clk 0:00:24]} 29. Qb2 {[%clk 0:00:55]}  Nxd3 {[%clk 0:00:23]} 30. cxd3 {[%clk 0:00:55]}  Rxd3 {[%clk 0:00:22]} 31. Rfe1 {[%clk 0:00:52]}  Bd8 {[%clk 0:00:20]} 32. Ne4 {[%clk 0:00:49]}  Qf7 {[%clk 0:00:19]} 33. b4 {[%clk 0:00:43]}  Kh7 {[%clk 0:00:19]} 34. Nc5 {[%clk 0:00:43]}  Rf3 {[%clk 0:00:14]} 35. Rad1 {[%clk 0:00:42]}  Bc7 {[%clk 0:00:12]} 36. Ne6 {[%clk 0:00:38]}  Bb8 {[%clk 0:00:09]} 37. Rd8 {[%clk 0:00:37]}  Ng4 {[%clk 0:00:04]} 38. Qh8# {[%clk 0:00:36]} 1-0


[Site "https://www.chess.com"]

[Event "Titled Tuesday Blitz April 4 Early 2023"]
[White "Gurevich, Dmitry"]
[Black "Sanchez, Robert"]
[WhiteFideId "2000407"]
[BlackFideId "2034360"]
[WhiteElo "2506"]
[BlackElo "2047"]
[Result "1-0"]
[Round "01"]
[TimeControl "180+2"]
[Date "2023.04.04"]
[WhiteClock "0:02:10"]
[BlackClock "0:02:51"]

1. d4 {[%clk 0:02:58]}  d5 {[%clk 0:02:59]} 2. c4 {[%clk 0:02:58]}  c6 {[%clk 0:03:00]} 3. e3 {[%clk 0:02:55]}  Nf6 {[%clk 0:03:00]} 4. Nc3 {[%clk 0:02:55]}  e6 {[%clk 0:02:59]} 5. Nf3 {[%clk 0:02:54]}  Bd6 {[%clk 0:02:59]} 6. Bd3 {[%clk 0:02:51]}  Nbd7 {[%clk 0:02:59]} 7. O-O {[%clk 0:02:49]}  dxc4 {[%clk 0:02:57]} 8. Bxc4 {[%clk 0:02:48]}  b5 {[%clk 0:02:58]} 9. Bd3 {[%clk 0:02:46]}  Bb7 {[%clk 0:02:59]} 10. e4 {[%clk 0:02:43]}  e5 {[%clk 0:02:59]} 11. d5 {[%clk 0:02:38]}  a6 {[%clk 0:02:59]} 12. dxc6 {[%clk 0:02:36]}  Bxc6 {[%clk 0:03:00]} 13. Bxb5 {[%clk 0:02:29]}  axb5 {[%clk 0:02:51]} 14. Qxd6 {[%clk 0:02:26]}  Qb6 {[%clk 0:02:51]} 15. Nxe5 {[%clk 0:02:14]}  Nxe5 {[%clk 0:02:50]} 16. Qxe5+ {[%clk 0:02:13]}  Kf8 {[%clk 0:02:51]} 17. Be3 {[%clk 0:02:10]} 1-0


[Site "https://www.chess.com"]

[Event "Titled Tuesday Blitz April 4 Early 2023"]
[White "hsd2016"]
[Black "Bayo Milagro, Alvaro"]
[BlackFideId "22275240"]
[WhiteElo "2030"]
[BlackElo "2270"]
[Result "0-1"]
[Round "01"]
[TimeControl "180+2"]
[Date "2023.04.04"]
[WhiteClock "0:00:12"]
[BlackClock "0:00:27"]

1. e4 {[%clk 0:03:00]}  e6 {[%clk 0:02:56]} 2. d4 {[%clk 0:03:00]}  d5 {[%clk 0:02:57]} 3. Nd2 {[%clk 0:03:01]}  Be7 {[%clk 0:02:57]} 4. c3 {[%clk 0:02:59]}  Nf6 {[%clk 0:02:54]} 5. e5 {[%clk 0:02:59]}  Nfd7 {[%clk 0:02:54]} 6. f4 {[%clk 0:02:57]}  c5 {[%clk 0:02:54]} 7. Ngf3 {[%clk 0:02:58]}  b6 {[%clk 0:02:54]} 8. Bd3 {[%clk 0:02:58]}  Ba6 {[%clk 0:02:54]} 9. Bxa6 {[%clk 0:02:56]}  Nxa6 {[%clk 0:02:55]} 10. Qe2 {[%clk 0:02:57]}  Nc7 {[%clk 0:02:54]} 11. O-O {[%clk 0:02:56]}  O-O {[%clk 0:02:54]} 12. a3 {[%clk 0:02:54]}  f5 {[%clk 0:02:53]} 13. b4 {[%clk 0:02:50]}  Kh8 {[%clk 0:02:51]} 14. Re1 {[%clk 0:02:48]}  Rg8 {[%clk 0:02:50]} 15. Nf1 {[%clk 0:02:47]}  a5 {[%clk 0:02:48]} 16. Rb1 {[%clk 0:02:42]}  axb4 {[%clk 0:02:46]} 17. axb4 {[%clk 0:02:43]}  c4 {[%clk 0:02:45]} 18. Ng3 {[%clk 0:02:39]}  Nb5 {[%clk 0:02:44]} 19. Qe3 {[%clk 0:02:35]}  Ra2 {[%clk 0:02:42]} 20. Re2 {[%clk 0:02:35]}  Qa8 {[%clk 0:02:39]} 21. h3 {[%clk 0:02:26]}  Qa4 {[%clk 0:02:34]} 22. Bd2 {[%clk 0:02:15]}  Ra1 {[%clk 0:02:19]} 23. Rxa1 {[%clk 0:02:12]}  Qxa1+ {[%clk 0:02:20]} 24. Kh2 {[%clk 0:02:13]}  Ra8 {[%clk 0:02:21]} 25. Nh5 {[%clk 0:01:56]}  Ra3 {[%clk 0:02:05]} 26. Re1 {[%clk 0:01:50]}  Qa2 {[%clk 0:01:58]} 27. Ng5 {[%clk 0:01:27]}  Bxg5 {[%clk 0:01:55]} 28. fxg5 {[%clk 0:01:28]}  Nf8 {[%clk 0:01:44]} 29. Nf4 {[%clk 0:00:54]}  Qc2 {[%clk 0:01:41]} 30. Rc1 {[%clk 0:00:51]}  Qe4 {[%clk 0:01:40]} 31. Qf2 {[%clk 0:00:51]}  Ra2 {[%clk 0:01:32]} 32. Re1 {[%clk 0:00:32]}  Qc2 {[%clk 0:01:29]} 33. Re2 {[%clk 0:00:33]}  Ra1 {[%clk 0:01:17]} 34. g6 {[%clk 0:00:23]}  Nxc3 {[%clk 0:00:35]} 35. Bxc3 {[%clk 0:00:15]}  Qxc3 {[%clk 0:00:34]} 36. Qh4 {[%clk 0:00:15]}  Qc1 {[%clk 0:00:30]} 37. gxh7 {[%clk 0:00:12]}  Qg1+ {[%clk 0:00:27]} 38. Kg3 {[%clk 0:00:12]}  Ra3+ {[%clk 0:00:27]} 0-1


[Site "https://www.chess.com"]

[Event "Titled Tuesday Blitz April 4 Early 2023"]
[White "Maluco_do_Natal_00"]
[Black "Salman, Pavel"]
[BlackFideId "24153753"]
[WhiteElo "2006"]
[BlackElo "2187"]
[Result "0-1"]
[Round "01"]
[TimeControl "180+2"]
[Date "2023.04.04"]
[WhiteClock "0:00:01"]
[BlackClock "0:02:08"]

1. e4 {[%clk 0:02:58]}  c5 {[%clk 0:02:59]} 2. Nf3 {[%clk 0:02:57]}  e6 {[%clk 0:03:00]} 3. d4 {[%clk 0:02:57]}  cxd4 {[%clk 0:03:00]} 4. Nxd4 {[%clk 0:02:58]}  a6 {[%clk 0:03:01]} 5. Nc3 {[%clk 0:02:58]}  Qc7 {[%clk 0:03:01]} 6. a3 {[%clk 0:02:56]}  b5 {[%clk 0:03:01]} 7. Be3 {[%clk 0:02:53]}  b4 {[%clk 0:03:01]} 8. axb4 {[%clk 0:02:52]}  Bxb4 {[%clk 0:03:02]} 9. Qd2 {[%clk 0:01:49]}  Nf6 {[%clk 0:03:02]} 10. f3 {[%clk 0:01:43]}  d5 {[%clk 0:03:01]} 11. e5 {[%clk 0:01:21]}  Qxe5 {[%clk 0:02:58]} 12. Kf2 {[%clk 0:01:04]}  Qc7 {[%clk 0:02:52]} 13. Nb3 {[%clk 0:00:27]}  O-O {[%clk 0:02:50]} 14. Be2 {[%clk 0:00:20]}  Bb7 {[%clk 0:02:45]} 15. Rhd1 {[%clk 0:00:19]}  e5 {[%clk 0:02:45]} 16. Bg5 {[%clk 0:00:12]}  d4 {[%clk 0:02:45]} 17. Bxf6 {[%clk 0:00:10]}  gxf6 {[%clk 0:02:46]} 18. Qd3 {[%clk 0:00:09]}  dxc3 {[%clk 0:02:43]} 19. bxc3 {[%clk 0:00:08]}  Qxc3 {[%clk 0:02:41]} 20. Qf5 {[%clk 0:00:07]}  e4 {[%clk 0:02:27]} 21. fxe4 {[%clk 0:00:05]}  Qe5 {[%clk 0:02:23]} 22. Qg4+ {[%clk 0:00:04]}  Qg5 {[%clk 0:02:23]} 23. Qf3 {[%clk 0:00:04]}  Nc6 {[%clk 0:02:19]} 24. Bd3 {[%clk 0:00:03]}  Ne5 {[%clk 0:02:19]} 25. Qe2 {[%clk 0:00:03]}  Kh8 {[%clk 0:02:14]} 26. g3 {[%clk 0:00:03]}  Rg8 {[%clk 0:02:13]} 27. Rg1 {[%clk 0:00:02]}  Ng4+ {[%clk 0:02:13]} 28. Kg2 {[%clk 0:00:02]}  Ne3+ {[%clk 0:02:12]} 29. Kh1 {[%clk 0:00:02]}  Rae8 {[%clk 0:02:08]} 30. Ra4 {[%clk 0:00:01]}  Rxe4 {[%clk 0:02:08]} 0-1


[Site "https://www.chess.com"]

[Event "Titled Tuesday Blitz April 4 Early 2023"]
[White "Bodnaruk, Anastasia"]
[Black "Mamedov, Rauf"]
[WhiteFideId "4181751"]
[BlackFideId "13401653"]
[WhiteElo "2310"]
[BlackElo "2635"]
[Result "0-1"]
[Round "02"]
[TimeControl "180+2"]
[Date "2023.04.04"]
[WhiteClock "0:00:01"]
[BlackClock "0:00:54"]

1. e4 {[%clk 0:03:00]}  c5 {[%clk 0:02:59]} 2. Nc3 {[%clk 0:03:00]}  Nc6 {[%clk 0:02:58]} 3. Bb5 {[%clk 0:02:58]}  Nd4 {[%clk 0:02:58]} 4. Bc4 {[%clk 0:02:58]}  a6 {[%clk 0:02:56]} 5. a4 {[%clk 0:02:57]}  e6 {[%clk 0:02:50]} 6. Nge2 {[%clk 0:02:57]}  Nf6 {[%clk 0:02:46]} 7. O-O {[%clk 0:02:56]}  Qc7 {[%clk 0:02:14]} 8. f4 {[%clk 0:02:45]}  d6 {[%clk 0:02:06]} 9. d3 {[%clk 0:02:43]}  Be7 {[%clk 0:02:03]} 10. Be3 {[%clk 0:02:35]}  Ng4 {[%clk 0:01:56]} 11. Bd2 {[%clk 0:02:27]}  Nc6 {[%clk 0:01:47]} 12. Ng3 {[%clk 0:02:12]}  Nf6 {[%clk 0:01:44]} 13. f5 {[%clk 0:02:09]}  Ne5 {[%clk 0:01:37]} 14. Bg5 {[%clk 0:01:54]}  Bd7 {[%clk 0:01:28]} 15. Bxf6 {[%clk 0:01:50]}  Bxf6 {[%clk 0:01:16]} 16. Nh5 {[%clk 0:01:50]}  O-O-O {[%clk 0:01:14]} 17. Nxf6 {[%clk 0:01:39]}  gxf6 {[%clk 0:01:14]} 18. fxe6 {[%clk 0:01:39]}  fxe6 {[%clk 0:01:14]} 19. Rxf6 {[%clk 0:01:37]}  Rhg8 {[%clk 0:01:15]} 20. Qe2 {[%clk 0:00:49]}  Ng4 {[%clk 0:01:13]} 21. Rf4 {[%clk 0:00:49]}  d5 {[%clk 0:01:14]} 22. Rxg4 {[%clk 0:00:47]}  dxc4 {[%clk 0:01:14]} 23. dxc4 {[%clk 0:00:42]}  Qe5 {[%clk 0:01:10]} 24. Rf1 {[%clk 0:00:38]}  Qd4+ {[%clk 0:01:02]} 25. Kh1 {[%clk 0:00:38]}  Rxg4 {[%clk 0:01:02]} 26. Qxg4 {[%clk 0:00:38]}  Qxc4 {[%clk 0:01:03]} 27. Rf7 {[%clk 0:00:32]}  Qb4 {[%clk 0:01:02]} 28. Rf1 {[%clk 0:00:15]}  Qxb2 {[%clk 0:01:01]} 29. Qg3 {[%clk 0:00:15]}  Qxc2 {[%clk 0:00:56]} 30. e5 {[%clk 0:00:15]}  Bc6 {[%clk 0:00:55]} 31. a5 {[%clk 0:00:06]}  Kb8 {[%clk 0:00:55]} 32. Qe3 {[%clk 0:00:01]}  Qxg2# {[%clk 0:00:54]} 0-1


[Site "https://www.chess.com"]